Cogmind - Beta 15 @@@ ROGUE MODE // 2025.07.31 @ 09:05:31 Player: beans Result: Destroyed by S-10 Pest with Light Assault Rifle Performance ------------- Evolutions (0) 0 Regions Visited (2) 400 Robots Destroyed (21) 105 Value Destroyed (289) 289 Prototype IDs (0) 0 Alien Tech Used (0) 0 Bonus (0) 0 TOTAL SCORE: 794 Bonus ------- None Cogmind --------- Core Integrity 0/250 Matter 300/300 Energy 265/265 System Corruption 0% Temperature Cool (0) Movement Core (550) Ox10 Location -10/Mines Parts ------- > --- POWER (1) -------- Improved Ion Engine > --- PROPULSION (2) --- (None) > --- UTILITY (2) ------ Large Storage Unit Improved Targeting Computer > --- WEAPON (2) ------- Rocket Launcher > --- INVENTORY (15) --- Small Storage Unit Improved Targeting Computer Improved Targeting Computer Improved Targeting Computer Peak State ------------ > --- POWER ------------ Improved Ion Engine > --- PROPULSION ------- Light Treads > --- UTILITY ---------- Large Storage Unit Improved Targeting Computer > --- WEAPON ----------- EM Pulse Gun EM Pulse Gun > --- INVENTORY -------- Small Storage Unit Improved Targeting Computer Improved Targeting Computer Improved Targeting Computer Small Laser Assault Rifle Grenade Launcher [Rating: 9] Favorites ----------- Power Ion Engine Engine Ion Engine Propulsion Light Treads Treads Light Treads Utility Large Storage Unit Storage Large Storage Unit Processor Improved Targeting Computer Weapon EM Pulse Gun Energy Gun EM Pulse Gun Ballistic Gun Assault Rifle Launcher Rocket Launcher Build | -11 -10 -10 ------- Run | Yrd Mat Min Slots Evolved . | . . . Power . | . . . Propulsion . | . . . Utility . | . . . Weapon . | . . . Parts Attached 12 | 2 9 1 Power 2 | . 2 . Engine 2 | . 2 . Core . | . . . Reactor . | . . . Propulsion 1 | . 1 . Treads 1 | . 1 . Leg . | . . . Wheel . | . . . Hover . | . . . Flight . | . . . Utility 2 | . 2 . Device . | . . . Storage 1 | . 1 . Processor 1 | . 1 . Hackware . | . . . Protection . | . . . Artifact . | . . . Weapon 7 | 2 4 1 Energy Gun 4 | 2 2 . Energy Cannon . | . . . Ballistic Gun 1 | . 1 . Ballistic Cannon . | . . . Launcher 2 | . 1 1 Special Weapon . | . . . Impact Weapon . | . . . Slashing Weapon . | . . . Piercing Weapon . | . . . Special Melee Weapon . | . . . Unidentified Prototypes . | . . . Parts Lost 4 | . 2 2 Power . | . . . Propulsion 1 | . . 1 Utility . | . . . Weapon 3 | . 2 1 Highest Loss Streak 1 | . 1 1 To Critical Strikes . | . . . Average Backups 4 | 1 4 4 Power . | . . . Propulsion . | . . . Utility 2 | . 1 4 Weapon 2 | . 2 . Tool/Special . | . . . Unused Backups 5 | . 1 4 Power 1 | . 1 . Propulsion . | . . . Utility 4 | . . 4 Weapon . | . . . Tool/Special . | . . . Average Slot Usage (%) 53 | . 52 59 Engine 12 | . 12 14 Treads 5 | . 5 5 Storage 8 | . 6 14 Processor 3 | . 1 14 Energy Gun 21 | . 26 2 Launcher 1 | . . 7 Peak Build Rating 9 | 2 9 7 Average Rating 4 | 1 4 6 On Entrance 3 | . 2 7 Naked Turns . | . . . Heaviest Build 31 | 3 31 31 Greatest Support 20 | 3 20 20 Greatest Overweight (x) 10 | . 9 10 Average Overweight (x) 1 | . 1 4 Largest Inventory Capacity 15 | 5 15 15 Average Capacity 10 | 5 9 15 Most Carried 9 | 3 9 5 Average Carried 4 | 1 4 4 Final Capacity 15 | 5 15 15 Final Carried 4 | 3 4 4 Class Distribution -------------------- 100% | Mutant Dominant Class ---------------- Mutant | -10/Materials Mutant | -10/Mines Resources | -11 -10 -10 ----------- Run | Yrd Mat Min Matter Collected 377 | 161 195 21 Remotely . | . . . Salvage Created 642 | 16 588 38 Parts 36 | 2 32 2 Haulers Intercepted . | . . . Recyclers Shooed 4 | . 4 . Parts Field Recycled . | . . . Retrieved Matter . | . . . Parts Self-Destructed . | . . . Prevented . | . . . Kills | -11 -10 -10 ------- Run | Yrd Mat Min Combat Hostiles Destroyed 8 | . 7 1 Guns 6 | . 6 . AOE 2 | . 1 1 Classes Destroyed 8 | 1 7 . Worker 2 | . 2 . Builder 2 | . 2 . Tunneler 1 | 1 . . Recycler 4 | . 4 . Operator 1 | . 1 . Watcher 3 | . 3 . Swarmer 5 | . 5 . Grunt 3 | . 2 1 Best Kill Streak 6 | 1 6 1 Combat Bots Only 4 | . 4 1 Max Kills in Single Turn 2 | 1 2 1 Gunslinging 1 | . 1 . Exploded 1 | . 1 1 Melee . | . . . Uniques/NPCs Destroyed . | . . . Combat | -11 -10 -10 -------- Run | Yrd Mat Min Hostile Shots Fired 81 | . 46 35 Missed 21 | . 13 8 Hits 60 | . 33 27 Projectile 60 | . 33 27 Damage Taken 737 | . 393 344 Core 253 | . 160 93 Absorbed by Shields . | . . . Core Remaining (%) 100 | 100 . . Volleys Fired 61 | 5 50 6 Largest 2 | 2 2 1 Hottest 80 | 80 80 40 Shots Fired 108 | 10 92 6 Gun 103 | 10 88 5 Cannon . | . . . Launcher 5 | . 4 1 Special . | . . . Kinetic 2 | . 2 . Thermal 23 | 5 18 . Explosive 5 | . 4 1 Electromagnetic 78 | 5 68 5 Robot Hit Streak 5 | 3 5 3 Robot Miss Streak 5 | 2 5 3 Penetration Max . | . . . Secondary Targets 1 | . 1 . Max Gunslinging Chain 1 | . 1 . Shots Hit Robots 48 | 5 40 3 Core Hits 30 | 2 26 2 Critical Kills . | . . . Critical Parts Destroyed . | . . . Critical Strikes 2 | . 2 . Corrupt 2 | . 2 . Melee Attacks . | . . . Impact . | . . . Slashing . | . . . Piercing . | . . . Sneak Attacks . | . . . Combat Hostiles . | . . . Follow-up Attacks . | . . . Damage Inflicted 985 | 59 842 84 Guns 595 | 59 499 37 Cannons . | . . . Explosions 390 | . 343 47 Melee . | . . . Ramming . | . . . Kinetic 11 | . 11 . Thermal 234 | 22 212 . Explosive 289 | . 242 47 Electromagnetic 451 | 37 377 37 Impact . | . . . Slashing . | . . . Piercing . | . . . Highest Corruption . | . . . Average Corruption . | . . . Corruption Purged . | . . . Corruption Blocked . | . . . Overload Shots . | . . . Overflow Damage 47 | . 47 . Projectiles . | . . . Explosions 47 | . 47 . Melee . | . . . Knockbacks . | . . . Impact . | . . . Kinetic . | . . . Secondary . | . . . Self-Inflicted Damage 142 | . 114 28 Shots 6 | . 5 1 Rammed . | . . . Targets Rammed . | . . . Kicked . | . . . Crushed . | . . . Highest Temperature 54 | 6 54 52 Average Temperature 16 | 3 16 26 Received Heat Transfer 207 | . 48 159 Siege Activations . | . . . Martial Activations . | . . . Shielding Activations . | . . . Robots Disrupted . | . . . Combat Hostiles . | . . . Robots Corrupted . | . . . Combat Hostiles . | . . . Parts Fried 4 | 1 3 . Impact Corruptions . | . . . Robots Melted . | . . . Combat Hostiles . | . . . Parts Melted 1 | . 1 . Heat Transferred 350 | 50 300 . Parts Sabotaged . | . . . Parts Stolen . | . . . Parts Stripped . | . . . Power Chain Reactions 3 | . 3 . Alert | -11 -10 -10 ------- Run | Yrd Mat Min Maximum Alert Level . | . . . Low Security (%) 100 | 100 100 100 Level 1 . | . . . Level 2 . | . . . Level 3 . | . . . Level 4 . | . . . Level 5 . | . . . High Security . | . . . Max Security . | . . . Peak Influence 119 | 5 119 30 Initial . | . . . Average 15 | . 18 4 Influence Increases 385 | 5 323 57 Destroy 0b10 Robot/C 160 | . 140 20 Destroy 0b10 Robot/NC 65 | 5 60 . Destroy Leader 36 | . 36 . Disable Machine 45 | . 45 . Destroy Structure 49 | . 42 7 Lose Combat Pursuer 30 | . . 30 Influence Decreases 385 | 5 323 57 Time Decay 331 | 5 269 57 Lost Part 10 | . 10 . Purge Threat 44 | . 44 . Squads Dispatched 1 | . 1 . Investigation . | . . . Extermination . | . . . Reinforcement 1 | . 1 . Assault . | . . . Garrison . | . . . Intercept . | . . . Searches Triggered . | . . . Construction Impeded . | . . . Haulers Reinforced . | . . . Active Scanning Responses . | . . . Cargo Convoy Interrupts . | . . . Stealth | -11 -10 -10 --------- Run | Yrd Mat Min Distress Signals . | . . . Communications Jammed . | . . . Distress Signals . | . . . Times Spotted 20 | . 16 4 Peak Tracking Total 4 | . 4 2 Tactical Retreats 1 | . . 1 Traps | -11 -10 -10 ------- Run | Yrd Mat Min Traps Triggered . | . . . Indirectly . | . . . Trap Hack Attempts . | . . . Triggered . | . . . Disarmed . | . . . Reprogrammed . | . . . Reused . | . . . Traps Extracted . | . . . Installed . | . . . Triggered . | . . . Machines | -11 -10 -10 ---------- Run | Yrd Mat Min Machines Disabled 3 | . 3 . Max in Single Turn 1 | . 1 . Machines Repaired . | . . . Machines Dismantled . | . . . Machines Sabotaged . | . . . Overloaded Fab Kills . | . . . Hacking | -11 -10 -10 --------- Run | Yrd Mat Min Machines Accessed 1 | . 1 . Terminals 1 | . 1 . Fabricators . | . . . Repair Stations . | . . . Recycling Units . | . . . Scanalyzers . | . . . Garrison Access . | . . . Total Hacks 7 | . 7 . Successful 4 | . 4 . Failed 3 | . 3 . Catastrophic . | . . . Database Lockouts . | . . . Manual . | . . . Terminals 7 | . 7 . Fabricators . | . . . Repair Stations . | . . . Recycling Units . | . . . Scanalyzers . | . . . Garrison Access . | . . . Terminal Hacks 4 | . 4 . Record 1 | . 1 . Alert Level 1 | . 1 . Unreport Threat 2 | . 2 . Fabricator Hacks . | . . . Repair Station Hacks . | . . . Recycling Unit Hacks . | . . . Scanalyzer . | . . . Garrison Access Hacks . | . . . Unauthorized Hacks . | . . . Terminals . | . . . Fabricators . | . . . Repair Stations . | . . . Recycling Units . | . . . Scanalyzers . | . . . Garrison Access . | . . . Data Cores Recovered . | . . . Used . | . . . Hacking Detections 1 | . 1 . Full Trace Events . | . . . Feedback Events . | . . . Feedback Blocked . | . . . Robot Schematics Acquired . | . . . Robots Built . | . . . Authchips . | . . . Time . | . . . Total Robot Build Rating . | . . . Part Schematics Acquired . | . . . Parts Built . | . . . Authchips . | . . . Time . | . . . Total Part Build Rating . | . . . Parts Repaired . | . . . Time . | . . . Parts Recycled . | . . . Recycled Matter . | . . . Retrieved Matter . | . . . Retrieved Components . | . . . Parts Scanalyzed . | . . . Part Schematics Acquired . | . . . Parts Damaged . | . . . Bothacking | -11 -10 -10 ------------ Run | Yrd Mat Min Used RIF Installer . | . . . Robots Hacked . | . . . Non-combat . | . . . Combat . | . . . Robot Hacks Applied . | . . . Relay Couplers Released . | . . . Fabnet Peak Effective % . | . . . Robots Rewired . | . . . Allies Hacked . | . . . Hacks Repelled . | . . . Allies | -11 -10 -10 -------- Run | Yrd Mat Min Total Allies . | . . . Largest Group . | . . . Highest-Rated Group . | . . . Highest-Rated Ally . | . . . Total Orders . | . . . Ally Attacks . | . . . Total Damage . | . . . Kills . | . . . Allies Corrupted . | . . . Allies Melted . | . . . Intel | -11 -10 -10 ------- Run | Yrd Mat Min Active Infowar (turns) . | . . . Robot Analysis Total . | . . . Derelict Logs Recovered 1 | . . 1 Drone Launches . | . . . Drone Recoveries . | . . . Exploration | -11 -10 -10 ------------- Run | Yrd Mat Min Turns Passed 1932 | 70 1534 328 Spaces Moved 924 | 96 742 86 Core 650 | 96 518 36 Treads 274 | . 224 50 Legs . | . . . Wheels . | . . . Hover . | . . . Flight . | . . . Fastest Speed 50 | 50 50 240 Average Speed 167 | 50 160 366 Slowest Speed 550 | 50 500 550 Overloaded Moves . | . . . Propulsion Burnouts . | . . . Robots Hopped . | . . . Potential Cave-ins . | . . . Cave-ins Triggered . | . . . Exploration Rate (%) 38 | 4 79 33 Regions Visited 2 Branch Regions 1 Pre-discovered Areas . | . . . Known Exits Taken . | . . . Unknown Exits Taken 2 | 1 1 . Scrap Searched . | . . . Spaces Dug 9 | . . 9 Terrain Destroyed 64 | . 55 9 Melee . | . . . Projectile . | . . . AOE 64 | . 55 9 Terrain Rammed . | . . . Walls Destroyed . | . . . Machines Disabled . | . . . Actions | -11 -10 -10 --------- Run | Yrd Mat Min Total 1199 | 107 998 94 Wait 183 | . 183 . Move 921 | 95 740 86 Hop . | . . . Pick Up 15 | 5 9 1 Fast Attach 2 | . 2 . Attach 9 | 2 6 1 Detach 2 | . 2 . Swap 1 | . 1 . Drop 5 | . 5 . Fire 61 | 5 50 6 Melee . | . . . Ram . | . . . Kick . | . . . Crush . | . . . Escape Stasis . | . . . Rewire . | . . . Trap . | . . . Miscellaneous . | . . . Route ------- -11/Scrapyard -10/Materials (discovered 3 exits: *Mat x2 / [*Min]) -10/Mines (discovered 1 exit: Mat) History --------- Turn | Location | Event 5 | -11/Scrapyard | Discovered new exit (range 15) 71 | -11/Scrapyard | Entered Materials 186 | -10/Materials | Discovered new exit (range 8) 304 | -10/Materials | Build established: Mutant 686 | -10/Materials | Discovered new exit (range 15) 734 | -10/Materials | Discovered new exit (range 8) 1455 | -10/Materials | Core integrity fell below 50% 1605 | -10/Materials | Entered Mines 1644 | -10/Mines | Identified exit to Materials 1720 | -10/Mines | Core integrity fell below 20% 1740 | -10/Mines | Received a Rocket Launcher from a helpful Derelict 1933 | -10/Mines | Destroyed by S-10 Pest with Light Assault Rifle Last Messages --------------- 9S-TAC(g): "Need a small hole in the wall? Leave that to the mining laser wimps, I say!" 9S-TAC(g): "Would you like a rocket launcher? I know I would if I were you, so I'm going to lend you mine." 9S-TAC(g) slips back into the shadows. Acquired Rocket Launcher. G-34 Mercenary destroyed. U-05 Engineer lays Concrete. Acquired 21 matter. U-05 Engineer lays Concrete. U-05 Engineer builds a Wall. U-05 Engineer lays Concrete. U-05 Engineer builds a Wall. U-05 Engineer lays Concrete. U-05 Engineer builds a Wall. U-05 Engineer lays Concrete. U-05 Engineer builds a Wall. R-06 Scavenger collects Aluminum Leg. K-01 Serf collects debris. Map ----- +----------------------------------------------------+ | ?????????????????????????????????????????????????? | | ?????????????????????????????????????????????????? | | ?????????????????????????????????????????????????? | | ?????????????????????????????????????????????????? | | ?????????????????????????????????????????????????? | | ?????????????????????????????????????????????????? | | ?????????????????????????????????????????????????? | | ?????????????????????????????????????????????????? | | ?????????????????????????????????????????????????? | | ?????????????????????????????????????????????????? | | ???????????????????????? ?????????????????????? | | ???????????????????????# s ????????????????????? | | ??????????????????????? ????????????????????? | | ??????????????????????? ????????????????????? | | ??????????????????????? ????????????????????? | | ???????????????????????# #????????????????????? | | ??????????????????????## ##???????????????????? | | ??????????????????????? #???????????????????? | | ??????????????????????? #???????????????????? | | ??????????????????????? #???????????????????? | | ???????????????????????# #????# ??????????? | | ???????????????????????# ##?? ????????## | | ???????????????????????# ## u ????????# | | ???????????????????????# ???????? | | ???????????????????????# ????????? | | ???????????????????????# @ ????????? | | ?????????????????????### ????????? | | ?????????????????????# #???????????? | | ?????????????????????# ##???????????? | | ?????????????????????# #### ## #????????????? | | ?????????????????????# #???####?? ##???????????? | | ????????????????????## ##???????# #???????????? | | ???????????????????## ##?????# #???????????? | | ??????????????????## ##???? ?????????????? | | ????????????????### ##### ???????????????? | | ???????????????## ## #????####????????## | | ??????????????## ##??## ##???????# | | ??????????????# #### #???????# | | ????????????# ### ## #####???# | | ?????????? #??## ######### | | ????????? ????### !%= | | ?????????#### ???????#### ######### | | ????????????## ??????????## ## #?????? | | ?????????????## ????????????# # ##?????? | | ??????????????##????????????# ###??????? | | ????????????????????????????## ##????????? | | ?????????????????????????????## ###?????????? | | ??????????????????????????????## ##???????????? | | ???????????????????????????????# #????????????? | | ???????????????????????????????# #????????????? | +----------------------------------------------------+ Best States ------------- Heat Dissipation 25 Energy Generation 12 Energy Capacity 265 Matter Stores 300 Matter Capacity 300 Sight Range 16 Terrain Scan Density 10 Evasion (%) 50 Targeting Accuracy 6 Recoil Reduction 1 Item Schematics ----------------- None Robot Schematics ------------------ None Fabricated ------------ Nothing Repaired ---------- Nothing Alien Tech Used ----------------- None Achievements -------------- None Challenges ------------ None Game ------ Seed EfficiencyRagnarokSystem Manual? 0 Play Time 00:12:09 Cumulative 71.3 hours Start 2025.07.30 @ 22:56:32 End 2025.07.31 @ 09:05:31 Sessions 1 Manual Loads 0 Difficulty Rogue Special Mode None Game No. 295 Rogue 295 Adventurer 0 Explorer 0 Win Type - Total 0 Types 0/0/0/0/0/0/0/0/0/0 Lore% 22 Gallery% 31 Achievement% 26 Wizard Run 0 Options --------- Layout 2 ASCII 0 Keyboard 0 Movement Mouse Keybinds 0 Fullscreen 2 Font 24/Smallcaps Map View 50x44 Zoom Use 0% Tactical HUD 0 Map Filters NONE Filters NONE Steam 1 RUN: b9d4affd-d072-4c26-b7c3-2e51702db999